Cogmind - Beta 14 @@@ ROGUE MODE // 2024.09.22 @ 12:44:18 Player: ZarZap Result: Destroyed by G-34 Mercenary with Small Laser Performance ------------- Evolutions (1) 500 Regions Visited (2) 400 Robots Destroyed (16) 80 Value Destroyed (457) 457 Prototype IDs (0) 0 Alien Tech Used (0) 0 Bonus (200) 200 TOTAL SCORE: 1637 Bonus ------- Pacifist 200 Cogmind --------- Core Integrity 0/400 Matter 210/300 Energy 90/100 System Corruption 0% Temperature Warning (356) Movement Core (1400) Ox27 Location -9/Materials Parts ------- > --- POWER (1) -------- (None) > --- PROPULSION (4) --- (None) > --- UTILITY (2) ------ Huge Storage Unit > --- WEAPON (2) ------- Beam Cannon Light Assault Rifle > --- INVENTORY (25) --- Ion Engine Light Ion Engine Small Laser Small Laser Small Laser Particle Gun Peak State ------------ > --- POWER ------------ Ion Engine > --- PROPULSION ------- Wheel Compact Wheel Compact Wheel Compact Wheel > --- UTILITY ---------- Huge Storage Unit Hardened Light Armor Plating > --- WEAPON ----------- Small Laser Assault Rifle > --- INVENTORY -------- Ion Engine Light Ion Engine Small Laser Small Laser Particle Gun Beam Cannon Light Assault Rifle Light Assault Rifle [Rating: 10] Favorites ----------- Power Ion Engine Engine Ion Engine Propulsion Compact Wheel Leg Aluminum Leg Wheel Compact Wheel Utility Huge Storage Unit Storage Huge Storage Unit Protection Hardened Light Armor Plating Weapon Assault Rifle Energy Gun Small Laser Energy Cannon Beam Cannon Ballistic Gun Assault Rifle Build | -11 -10 -9 ------- Run | Yrd Mat Mat Slots Evolved 2 | . . 2 Power . | . . . Propulsion 2 | . . 2 Utility . | . . . Weapon . | . . . Parts Attached 12 | 2 1 9 Power . | . . . Engine . | . . . Core . | . . . Reactor . | . . . Propulsion 4 | 2 . 2 Treads . | . . . Leg . | . . . Wheel 4 | 2 . 2 Hover . | . . . Flight . | . . . Utility 3 | . 1 2 Device . | . . . Storage 2 | . 1 1 Processor . | . . . Hackware . | . . . Protection 1 | . . 1 Artifact . | . . . Weapon 5 | . . 5 Energy Gun 1 | . . 1 Energy Cannon 2 | . . 2 Ballistic Gun 2 | . . 2 Ballistic Cannon . | . . . Launcher . | . . . Special Weapon . | . . . Impact Weapon . | . . . Slashing Weapon . | . . . Piercing Weapon . | . . . Special Melee Weapon . | . . . Unidentified Prototypes . | . . . Parts Lost 8 | . . 8 Power 1 | . . 1 Propulsion 4 | . . 4 Utility 1 | . . 1 Weapon 2 | . . 2 Highest Loss Streak 7 | . . 7 To Critical Strikes . | . . . Average Slot Usage (%) 75 | . 85 73 Engine 10 | . 14 9 Wheel 26 | . 28 26 Storage 11 | . 14 11 Protection 4 | . . 5 Energy Gun 9 | . 14 8 Energy Cannon 1 | . . 2 Ballistic Gun 10 | . 14 9 Peak Build Rating 10 | 6 7 10 Average Rating 6 | 5 6 7 On Entrance 6 | 6 6 6 Naked Turns . | . . . Heaviest Build 93 | 13 18 93 Greatest Support 58 | 26 26 58 Greatest Overweight (x) 27 | . . 27 Average Overweight (x) . | . . . Largest Inventory Capacity 25 | 8 10 25 Average Capacity 18 | 8 8 20 Most Carried 8 | 6 3 8 Average Carried 5 | 4 2 6 Final Capacity 25 | 8 10 25 Final Carried 6 | 2 3 6 Class Distribution -------------------- 100% | Mutant Dominant Class ---------------- Mutant | -10/Materials Mutant | -9/Materials Resources | -11 -10 -9 ----------- Run | Yrd Mat Mat Matter Collected 292 | 200 . 92 Remotely . | . . . Salvage Created 609 | . . 609 Parts 38 | . . 38 Haulers Intercepted . | . . . Recyclers Shooed 1 | . . 1 Parts Field Recycled . | . . . Retrieved Matter . | . . . Parts Self-Destructed . | . . . Prevented . | . . . Kills | -11 -10 -9 ------- Run | Yrd Mat Mat Combat Hostiles Destroyed 14 | . . 14 Guns 7 | . . 7 Cannons 7 | . . 7 Classes Destroyed 5 | . . 5 Worker 1 | . . 1 Recycler 1 | . . 1 Swarmer 3 | . . 3 Grunt 8 | . . 8 Sentry 3 | . . 3 Best Kill Streak 8 | . . 8 Combat Bots Only 6 | . . 6 Max Kills in Single Turn 2 | . . 2 Gunslinging 1 | . . 1 Exploded . | . . . Melee . | . . . Uniques/NPCs Destroyed . | . . . Combat | -11 -10 -9 -------- Run | Yrd Mat Mat Hostile Shots Fired 96 | . . 96 Missed 19 | . . 19 Damage Taken 1043 | . 6 1037 Core 404 | . . 404 Absorbed by Shields . | . . . Core Remaining (%) 100 | 100 100 . Volleys Fired 43 | . . 43 Largest 2 | . . 2 Hottest 85 | . . 85 Shots Fired 71 | . . 71 Gun 47 | . . 47 Cannon 24 | . . 24 Launcher . | . . . Special . | . . . Kinetic 29 | . . 29 Thermal 42 | . . 42 Explosive . | . . . Electromagnetic . | . . . Robot Hit Streak 12 | . . 12 Robot Miss Streak 2 | . . 2 Penetration Max . | . . . Secondary Targets 3 | . . 3 Max Gunslinging Chain 1 | . . 1 Shots Hit Robots 52 | . . 52 Core Hits 26 | . . 26 Critical Kills . | . . . Critical Parts Destroyed . | . . . Critical Strikes . | . . . Melee Attacks . | . . . Impact . | . . . Slashing . | . . . Piercing . | . . . Sneak Attacks . | . . . Combat Hostiles . | . . . Follow-up Attacks . | . . . Damage Inflicted 781 | . 12 769 Guns 424 | . . 424 Cannons 330 | . . 330 Explosions . | . . . Melee . | . . . Ramming 27 | . 12 15 Kinetic 248 | . . 248 Thermal 506 | . . 506 Explosive . | . . . Electromagnetic . | . . . Impact . | . . . Slashing . | . . . Piercing . | . . . Highest Corruption . | . . . Average Corruption . | . . . Corruption Purged . | . . . Corruption Blocked . | . . . Overload Shots . | . . . Overflow Damage . | . . . Projectiles . | . . . Explosions . | . . . Melee . | . . . Knockbacks . | . . . Impact . | . . . Kinetic . | . . . Secondary . | . . . Self-Inflicted Damage 13 | . 6 7 Shots . | . . . Rammed 2 | . 1 1 Targets Rammed 2 | . 1 1 Kicked . | . . . Crushed . | . . . Highest Temperature 570 | . . 570 Average Temperature 295 | . . 295 Received Heat Transfer 384 | . . 384 Effects 18 | . . 18 Shutdowns 1 | . . 1 Energy Bleed 2 | . . 2 Interference 3 | . . 3 Matter Decay 1 | . . 1 Short Circuit 1 | . . 1 Damage (minor) 1 | . . 1 Damage (major) 7 | . . 7 Damage (core) 2 | . . 2 Siege Activations . | . . . Robots Corrupted . | . . . Combat Hostiles . | . . . Parts Fried . | . . . Impact Corruptions . | . . . Robots Melted . | . . . Combat Hostiles . | . . . Parts Melted . | . . . Heat Transferred 1113 | . . 1113 Parts Sabotaged . | . . . Parts Stolen . | . . . Parts Stripped . | . . . Power Chain Reactions . | . . . Alert | -11 -10 -9 ------- Run | Yrd Mat Mat Peak Influence 335 | . 15 335 Initial 5 | . . 5 Average 135 | . . 170 Maximum Alert Level 1 | . . 1 Low Security (%) 76 | 100 100 70 Level 1 23 | . . 29 Level 2 . | . . . Level 3 . | . . . Level 4 . | . . . Level 5 . | . . . High Security . | . . . Max Security . | . . . Squads Dispatched 1 | . . 1 Investigation . | . . . Extermination . | . . . Reinforcement 1 | . . 1 Assault . | . . . Garrison . | . . . Intercept . | . . . Searches Triggered . | . . . Construction Impeded . | . . . Haulers Reinforced . | . . . Active Scanning Responses . | . . . Cargo Convoy Interrupts . | . . . Stealth | -11 -10 -9 --------- Run | Yrd Mat Mat Distress Signals 1 | . . 1 Communications Jammed . | . . . Distress Signals . | . . . Times Spotted 24 | . 3 21 Peak Tracking Total 11 | . 3 11 Tactical Retreats . | . . . Traps | -11 -10 -9 ------- Run | Yrd Mat Mat Traps Triggered . | . . . Indirectly . | . . . Trap Hack Attempts . | . . . Triggered . | . . . Disarmed . | . . . Reprogrammed . | . . . Reused . | . . . Traps Extracted . | . . . Installed . | . . . Triggered . | . . . Machines | -11 -10 -9 ---------- Run | Yrd Mat Mat Machines Disabled . | . . . Max in Single Turn . | . . . Machines Repaired . | . . . Machines Dismantled . | . . . Machines Sabotaged . | . . . Overloaded Fab Kills . | . . . Hacking | -11 -10 -9 --------- Run | Yrd Mat Mat Machines Accessed . | . . . Terminals . | . . . Fabricators . | . . . Repair Stations . | . . . Recycling Units . | . . . Scanalyzers . | . . . Garrison Access . | . . . Total Hacks . | . . . Successful . | . . . Failed . | . . . Catastrophic . | . . . Database Lockouts . | . . . Manual . | . . . Terminals . | . . . Fabricators . | . . . Repair Stations . | . . . Recycling Units . | . . . Scanalyzers . | . . . Garrison Access . | . . . Terminal Hacks . | . . . Fabricator Hacks . | . . . Repair Station Hacks . | . . . Recycling Unit Hacks . | . . . Scanalyzer . | . . . Garrison Access Hacks . | . . . Unauthorized Hacks . | . . . Terminals . | . . . Fabricators . | . . . Repair Stations . | . . . Recycling Units . | . . . Scanalyzers . | . . . Garrison Access . | . . . Data Cores Recovered . | . . . Used . | . . . Hacking Detections . | . . . Full Trace Events . | . . . Feedback Events . | . . . Feedback Blocked . | . . . Robot Schematics Acquired . | . . . Robots Built . | . . . Authchips . | . . . Time . | . . . Total Robot Build Rating . | . . . Part Schematics Acquired . | . . . Parts Built . | . . . Authchips . | . . . Time . | . . . Total Part Build Rating . | . . . Parts Repaired . | . . . Time . | . . . Parts Recycled . | . . . Recycled Matter . | . . . Retrieved Matter . | . . . Retrieved Components . | . . . Parts Scanalyzed . | . . . Part Schematics Acquired . | . . . Parts Damaged . | . . . Bothacking | -11 -10 -9 ------------ Run | Yrd Mat Mat Used RIF Installer . | . . . Robots Hacked . | . . . Non-combat . | . . . Combat . | . . . Robot Hacks Applied . | . . . Relay Couplers Released . | . . . Fabnet Peak Effective % . | . . . Robots Rewired . | . . . Allies Hacked . | . . . Hacks Repelled . | . . . Allies | -11 -10 -9 -------- Run | Yrd Mat Mat Total Allies . | . . . Largest Group . | . . . Highest-Rated Group . | . . . Highest-Rated Ally . | . . . Total Orders . | . . . Ally Attacks . | . . . Total Damage . | . . . Kills . | . . . Allies Corrupted . | . . . Allies Melted . | . . . Intel | -11 -10 -9 ------- Run | Yrd Mat Mat Robot Analysis Total . | . . . Derelict Logs Recovered . | . . . Drone Launches . | . . . Drone Recoveries . | . . . Exploration | -11 -10 -9 ------------- Run | Yrd Mat Mat Turns Passed 454 | 6 89 359 Spaces Moved 293 | 1 95 197 Core 1 | . . 1 Treads . | . . . Legs . | . . . Wheels 292 | 1 95 196 Hover . | . . . Flight . | . . . Fastest Speed 90 | 90 90 90 Average Speed 104 | 90 90 111 Slowest Speed 1400 | 90 90 1400 Overloaded Moves . | . . . Propulsion Burnouts . | . . . Robots Hopped . | . . . Cave-ins Triggered . | . . . Exploration Rate (%) 20 | 2 32 28 Regions Visited 2 Branch Regions . Pre-discovered Areas . | . . . Known Exits Taken . | . . . Unknown Exits Taken 2 | 1 1 . Scrap Searched . | . . . Spaces Dug . | . . . Terrain Destroyed . | . . . Melee . | . . . Projectile . | . . . AOE . | . . . Terrain Rammed . | . . . Walls Destroyed . | . . . Machines Disabled . | . . . Actions | -11 -10 -9 --------- Run | Yrd Mat Mat Total 380 | 8 98 274 Wait 18 | . . 18 Move 291 | . 94 197 Hop . | . . . Pick Up 6 | . 1 5 Fast Attach 5 | . 1 4 Attach 4 | 2 . 2 Detach 2 | 2 . . Swap 3 | . . 3 Drop 6 | 4 1 1 Fire 43 | . . 43 Melee . | . . . Ram 2 | . 1 1 Kick . | . . . Crush . | . . . Escape Stasis . | . . . Rewire . | . . . Trap . | . . . Miscellaneous . | . . . Route ------- -11/Scrapyard -10/Materials -9/Materials History --------- Turn | Location | Event 7 | -11/Scrapyard | Discovered new exit (range 0) 7 | -11/Scrapyard | Entered Materials 91 | -10/Materials | Discovered new exit (range 3) 96 | -10/Materials | Entered another Materials area 96 | -9/Materials | Evolved 2 slots: Propulsion x2 300 | -9/Materials | Build established: Mutant 408 | -9/Materials | Core integrity fell below 50% 436 | -9/Materials | Core integrity fell below 20% 455 | -9/Materials | Destroyed by G-34 Mercenary with Small Laser Last Messages --------------- 00417_ Overheating: Beam Cannon damaged (-19). 00417_ Overheating: Lgt. Assault Rifle damaged (-5). 00420_ K-01 Serf collects debris. 00423_ G-34 Mercenary heat damages Aluminum Leg. 00424_ K-01 Serf collects debris. 00425_ G-34 Mercenary heat short circuits Aluminum Leg. 00425_ G-34 Mercenary destroyed. 00427_ Lgt. Assault Rifle destroyed. 00430_ Y-45 Defender destroyed. 00430_ K-01 Serf collects debris. 00435_ Hrd. Light Armor Plating destroyed. 00435_ K-01 Serf collects debris. 00437_ C-30 ARC bursts open, deploying its payload. 00437_ G-47 Trooper unfolds itself. 00437_ G-34 Mercenary unfolds itself. 00439_ K-01 Serf collects debris. 00443_ Y-45 Defender destroyed. 00443_ G-34 Mercenary destroyed. 00445_ K-01 Serf collects debris. Map ----- +----------------------------------------------------+ | ???????????? ??# ## #????????????????????? | | ???????????#######?# + +????????????????????? | | ???????????????????# ## #????????????????????? | | ???????????????????# #### #????????????????????? | | ???????????????????#####??# #????????????????????? | | ??????????????????????????# #????????????????????? | | ??????????????????????????# #????????????????????? | | ????########??????????????# ####?????????????????? | | ????? ##+###????????# !##????????????????? | | ??????? ########?# !#????????????????? | | ????????? # ### !#????????????????? | | ??????????? # """ / !#????????????????? | | ????????????# # """ ##### !#????????????????? | | ????????????# # """ !#???? !##????????????????? | | ????????????# / #????###?????????????????? | | ??? ######### k # | #????????????????????????? | | ########????????????????????????? | | #?????????????????????????? | | a #?????????????????????????? | | ? #?????????????????????????? | | ? #?????????????????????????? | | ?? *!#############?????????????? | | ??################## [g#[! #?????????????? | | ???????????????????+ gg%! k #?????????????? | | ???????????????????# #==k #?????????????? | | ???????????????????# #*@ !! #?????????????? | | ???????????????????# # !! #?????????????? | | ???????????????????# # ! #?????????????? | | ???????????????????# # ! #?????????????? | | ???????????????????# #############?????????????? | | ???????????????????# #?????????????????????????? | | ??????????????????? ?????????????????????????? | | ??????????????????? [ ?????????????????????????? | | ??????????????????? ?????????????????????????? | | ??????????????????# ?????????????????????????? | | ??????????????????# #????????????????????????? | | ??????????????????######?????????????????????????? | | ?????????????????????????????????????????????????? | | ?????????????????????????????????????????????????? | | ?????????????????????????????????????????????????? | | ?????????????????????????????????????????????????? | | ?????????????????????????????????????????????????? | | ?????????????????????????????????????????????????? | | ?????????????????????????????????????????????????? | | ?????????????????????????????????????????????????? | | ?????????????????????????????????????????????????? | | ?????????????????????????????????????????????????? | | ?????????????????????????????????????????????????? | | ?????????????????????????????????????????????????? | | ?????????????????????????????????????????????????? | +----------------------------------------------------+ Best States ------------- Heat Dissipation 28 Energy Generation 10 Energy Capacity 250 Matter Stores 300 Matter Capacity 300 Sight Range 16 Terrain Scan Density 10 Armor Coverage 150 Evasion (%) 42 Item Schematics ----------------- None Robot Schematics ------------------ None Fabricated ------------ Nothing Alien Tech Used ----------------- None Achievements -------------- None Challenges ------------ None Game ------ Seed ShadeZioniteMantle Manual? 0 Play Time 00:05:50 Cumulative 27.7 hours Start 2024.09.22 @ 12:28:52 End 2024.09.22 @ 12:44:18 Sessions 1 Manual Loads 0 Difficulty Rogue Special Mode None Game No. 117 Rogue 113 Adventurer 4 Explorer 0 Win Type - Total 0 Types 0/0/0/0/0/0/0/0/0 Lore% 13 Gallery% 30 Achievement% 21 Wizard Run 0 Options --------- Layout 2 ASCII 0 Keyboard 0 Movement Mouse Keybinds 0 Fullscreen 1 Font 16/SmallcapsGlow Map View 55x47 Zoom Use 0% Tactical HUD 1 Map Filters NONE Filters NONE Steam 1 RUN: d3acd386-c0bc-45c9-b671-6b3eb2673a30